[Event "Live Chess"]
[Site "Chess.com"]
[Date "2021.02.28"]
[Round "-"]
[White "Adan Bermudez, Sergio"]
[Black "Greet, Andrew N"]
[Result "0-1"]
[BlackElo "2301"]
[CurrentPosition "7r/6k1/8/1pPP3Q/6PK/6P1/P7/5q2 w - -"]
[ECO "A09"]
[ECOUrl "https://www.chess.com/openings/Reti-Opening-Reti-Gambit-Declined-Advance-Variation-3.b4"]
[EndDate "2021.02.28"]
[EndTime "15:04:09"]
[Link "https://www.chess.com/live/game/8259813393"]
[StartTime "13:58:29"]
[Termination "Grimlock_Glasgow won by resignation"]
[TimeControl "1500+10"]
[Timezone "UTC"]
[UTCDate "2021.02.28"]
[UTCTime "13:58:29"]
[WhiteElo "1791"]

1. Nf3 { [%clk 0:25:10] } 1... d5 { [%clk 0:25:10] } 2. c4 { [%clk 0:25:19] } 2... d4 { [%clk 0:25:16.1] } 3. b4 { [%clk 0:25:25.4] } 3... g5 { [%clk 0:23:02.6] } 4. Bb2 { [%clk 0:25:29.9] } 4... Bg7 { [%clk 0:22:56.9] } 5. e3 { [%clk 0:25:30.4] } 5... e5 { [%clk 0:22:56] } 6. exd4 { [%clk 0:25:32.8] } 6... exd4 { [%clk 0:23:04.5] } 7. d3 { [%clk 0:25:33] } 7... g4 { [%clk 0:22:20.1] } 8. Nfd2 { [%clk 0:25:35.4] } 8... Nh6 { [%clk 0:22:03.1] } 9. Be2 { [%clk 0:24:44.6] } 9... O-O { [%clk 0:21:45.5] } 10. O-O { [%clk 0:24:48.1] } 10... Nc6 { [%clk 0:17:37.5] } 11. b5 { [%clk 0:22:39.2] } 11... Ne5 { [%clk 0:17:37.6] } 12. Nb3 { [%clk 0:22:45.7] } 12... Qh4 { [%clk 0:15:47.2] } 13. Nxd4 { [%clk 0:19:22.9] } 13... Rd8 { [%clk 0:15:38.1] } 14. Nd2 { [%clk 0:18:54.3] } 14... Rxd4 { [%clk 0:11:01.3] } 15. Bxd4 { [%clk 0:18:56.5] } 15... g3 { [%clk 0:11:10.1] } 16. hxg3 { [%clk 0:19:03] } 16... Qxd4 { [%clk 0:11:18.4] } 17. Nb3 { [%clk 0:19:12.1] } 17... Qd6 { [%clk 0:10:49.4] } 18. d4 { [%clk 0:19:00.5] } 18... Neg4 { [%clk 0:10:53.8] } 19. Qd2 { [%clk 0:18:22.6] } 19... Qg6 { [%clk 0:10:30.7] } 20. f3 { [%clk 0:18:21.6] } 20... Nf6 { [%clk 0:07:29.1] } 21. g4 { [%clk 0:18:30.2] } 21... Ne8 { [%clk 0:05:42.6] } 22. c5 { [%clk 0:14:19.1] } 22... f6 { [%clk 0:04:44.2] } 23. Bc4+ { [%clk 0:14:05.1] } 23... Kh8 { [%clk 0:03:10.4] } 24. Rae1 { [%clk 0:14:02.9] } 24... Bf8 { [%clk 0:03:07.9] } 25. Qf4 { [%clk 0:06:11.2] } 25... Bd7 { [%clk 0:01:43.5] } 26. Re2 { [%clk 0:05:27.8] } 26... a6 { [%clk 0:00:49.6] } 27. bxa6 { [%clk 0:04:58.4] } 27... bxa6 { [%clk 0:00:59.5] } 28. Na5 { [%clk 0:03:32.5] } 28... Bb5 { [%clk 0:00:46] } 29. Rfe1 { [%clk 0:03:37.1] } 29... Ng8 { [%clk 0:00:37.7] } 30. Bxb5 { [%clk 0:01:01] } 30... axb5 { [%clk 0:00:44.9] } 31. Nc6 { [%clk 0:01:10.9] } 31... Bh6 { [%clk 0:00:42.2] } 32. Qh2 { [%clk 0:01:05.1] } 32... Ng7 { [%clk 0:00:46.4] } 33. Qxc7 { [%clk 0:01:12.6] } 33... Bg5 { [%clk 0:00:29.3] } 34. Ne7 { [%clk 0:01:06.7] } 34... Qh6 { [%clk 0:00:31.4] } 35. Nxg8 { [%clk 0:00:53.5] } 35... Rxg8 { [%clk 0:00:38.6] } 36. Re4 { [%clk 0:01:00.2] } 36... Qh4 { [%clk 0:00:21.7] } 37. d5 { [%clk 0:00:51.4] } 37... Bd2 { [%clk 0:00:14.7] } 38. R1e2 { [%clk 0:01:00.1] } 38... Bc3 { [%clk 0:00:22.6] } 39. Qh2 { [%clk 0:00:42.8] } 39... Qg5 { [%clk 0:00:26.6] } 40. Qd6 { [%clk 0:00:39.6] } 40... Be5 { [%clk 0:00:27] } 41. Rxe5 { [%clk 0:00:45.6] } 41... fxe5 { [%clk 0:00:36.6] } 42. Rxe5 { [%clk 0:00:52.5] } 42... Qc1+ { [%clk 0:00:39.9] } 43. Kh2 { [%clk 0:00:57.6] } 43... Qf4+ { [%clk 0:00:41.8] } 44. Kh3 { [%clk 0:00:59.4] } 44... h5 { [%clk 0:00:32.3] } 45. Qg6 { [%clk 0:00:30.8] } 45... hxg4+ { [%clk 0:00:29.2] } 46. fxg4 { [%clk 0:00:39.5] } 46... Ra8 { [%clk 0:00:35.1] } 47. Rh5+ { [%clk 0:00:23.2] } 47... Nxh5 { [%clk 0:00:39.8] } 48. Qxh5+ { [%clk 0:00:33.1] } 48... Kg7 { [%clk 0:00:48.3] } 49. g3 { [%clk 0:00:24.3] } 49... Qf1+ { [%clk 0:00:50] } 50. Kh4 { [%clk 0:00:33.5] } 50... Rh8 { [%clk 0:00:56.2] } 0-1

[Event "Live Chess"]
[Site "Chess.com"]
[Date "2021.02.28"]
[Round "-"]
[White "Polaczek, Richard"]
[Black "Berry, Neil M"]
[Result "1/2-1/2"]
[BlackElo "2141"]
[CurrentPosition "2rr2k1/pq3ppp/4pn2/2b5/PpN5/4P3/1P2QPPP/2RRB1K1 b - -"]
[ECO "D11"]
[ECOUrl "https://www.chess.com/openings/Slav-Defense-Modern-Line-3...Nf6"]
[EndDate "2021.02.28"]
[EndTime "14:32:09"]
[Link "https://www.chess.com/live/game/8259838983"]
[StartTime "14:00:24"]
[Termination "Game drawn by agreement"]
[TimeControl "1500+10"]
[Timezone "UTC"]
[UTCDate "2021.02.28"]
[UTCTime "14:00:24"]
[WhiteElo "2264"]

1. d4 { [%clk 0:25:10] } 1... d5 { [%clk 0:25:10] } 2. Nf3 { [%clk 0:25:07.6] } 2... Nf6 { [%clk 0:25:12.9] } 3. c4 { [%clk 0:25:08.7] } 3... c6 { [%clk 0:25:05.6] } 4. Nc3 { [%clk 0:25:06.4] } 4... e6 { [%clk 0:25:02.1] } 5. e3 { [%clk 0:24:58.6] } 5... Nbd7 { [%clk 0:24:54.1] } 6. Bd3 { [%clk 0:24:45.1] } 6... dxc4 { [%clk 0:24:51.1] } 7. Bxc4 { [%clk 0:24:51.3] } 7... b5 { [%clk 0:24:58.3] } 8. Bd3 { [%clk 0:24:54] } 8... Bd6 { [%clk 0:25:02] } 9. O-O { [%clk 0:24:19.3] } 9... O-O { [%clk 0:24:57.2] } 10. a4 { [%clk 0:23:01.4] } 10... b4 { [%clk 0:22:46.1] } 11. Ne4 { [%clk 0:23:04.9] } 11... Nxe4 { [%clk 0:22:27.2] } 12. Bxe4 { [%clk 0:23:11] } 12... Bb7 { [%clk 0:22:35.6] } 13. Nd2 { [%clk 0:22:34.4] } 13... Rc8 { [%clk 0:20:34] } 14. Nc4 { [%clk 0:20:30.5] } 14... Be7 { [%clk 0:20:19.8] } 15. Bd2 { [%clk 0:19:06.1] } 15... Qc7 { [%clk 0:19:14.8] } 16. Rc1 { [%clk 0:16:53.7] } 16... c5 { [%clk 0:18:20.3] } 17. Bxb7 { [%clk 0:15:17.2] } 17... Qxb7 { [%clk 0:18:26] } 18. Qe2 { [%clk 0:14:19.9] } 18... Rfd8 { [%clk 0:17:19] } 19. Rfd1 { [%clk 0:13:58.6] } 19... Nf6 { [%clk 0:13:39.1] } 20. dxc5 { [%clk 0:12:28.8] } 20... Bxc5 { [%clk 0:13:20.4] } 21. Be1 { [%clk 0:12:19.3] } 1/2-1/2

[Event "Live Chess"]
[Site "Chess.com"]
[Date "2021.02.28"]
[Round "-"]
[White "Gordon, Frederick"]
[Black "Findlay, David J"]
[Result "1/2-1/2"]
[BlackElo "2217"]
[CurrentPosition "8/8/8/1k6/6K1/8/8/8 w - -"]
[ECO "C41"]
[ECOUrl "https://www.chess.com/openings/Philidor-Defense-Exchange-Larsen-Variation"]
[EndDate "2021.02.28"]
[EndTime "15:08:15"]
[Link "https://www.chess.com/live/game/8260464439"]
[StartTime "14:12:00"]
[Termination "Game drawn by insufficient material"]
[TimeControl "1500+10"]
[Timezone "UTC"]
[UTCDate "2021.02.28"]
[UTCTime "14:12:00"]
[WhiteElo "1875"]

1. e4 { [%clk 0:25:10] } 1... e5 { [%clk 0:25:10] } 2. Nf3 { [%clk 0:25:14.8] } 2... d6 { [%clk 0:25:15.7] } 3. d4 { [%clk 0:25:22.6] } 3... exd4 { [%clk 0:25:21.7] } 4. Nxd4 { [%clk 0:25:29.9] } 4... g6 { [%clk 0:25:28.4] } 5. Bc4 { [%clk 0:24:08.4] } 5... Bg7 { [%clk 0:25:31.3] } 6. O-O { [%clk 0:23:31.3] } 6... Nf6 { [%clk 0:25:28.4] } 7. Nc3 { [%clk 0:23:11.3] } 7... O-O { [%clk 0:25:30.3] } 8. Bg5 { [%clk 0:21:55.5] } 8... Qe8 { [%clk 0:22:58.6] } 9. Qf3 { [%clk 0:18:03.5] } 9... Qe5 { [%clk 0:22:18.5] } 10. Bxf6 { [%clk 0:17:08.7] } 10... Qxf6 { [%clk 0:22:11.8] } 11. Qxf6 { [%clk 0:17:16.2] } 11... Bxf6 { [%clk 0:22:20.1] } 12. Ndb5 { [%clk 0:16:52.3] } 12... Bd8 { [%clk 0:21:53.1] } 13. Rad1 { [%clk 0:16:07.5] } 13... Bd7 { [%clk 0:20:34.5] } 14. f4 { [%clk 0:14:01.7] } 14... a6 { [%clk 0:18:19.9] } 15. Nd4 { [%clk 0:14:04.4] } 15... Nc6 { [%clk 0:18:24.9] } 16. Nxc6 { [%clk 0:13:23.9] } 16... Bxc6 { [%clk 0:18:21.3] } 17. Bd5 { [%clk 0:13:07.1] } 17... Bf6 { [%clk 0:17:47.6] } 18. Bxc6 { [%clk 0:12:15.5] } 18... bxc6 { [%clk 0:17:45.2] } 19. e5 { [%clk 0:12:11.9] } 19... dxe5 { [%clk 0:15:56.3] } 20. Ne4 { [%clk 0:12:17.1] } 20... Bg7 { [%clk 0:16:03.3] } 21. fxe5 { [%clk 0:12:23.4] } 21... Bxe5 { [%clk 0:15:53.2] } 22. Nf6+ { [%clk 0:12:30.6] } 22... Kg7 { [%clk 0:14:11.6] } 23. Nd7 { [%clk 0:12:37.5] } 23... Rfe8 { [%clk 0:14:14.3] } 24. Nxe5 { [%clk 0:12:45] } 24... Rxe5 { [%clk 0:14:20.7] } 25. Rd7 { [%clk 0:12:52.5] } 25... Rf8 { [%clk 0:12:55.7] } 26. Rxc7 { [%clk 0:11:51.7] } 26... Rc5 { [%clk 0:12:50] } 27. c3 { [%clk 0:11:36.4] } 27... a5 { [%clk 0:12:49] } 28. Rf4 { [%clk 0:09:29.4] } 28... g5 { [%clk 0:12:07.5] } 29. Rf3 { [%clk 0:09:17.2] } 29... Kg6 { [%clk 0:10:47.5] } 30. g4 { [%clk 0:09:17.3] } 30... h6 { [%clk 0:09:02.1] } 31. Rd3 { [%clk 0:08:32.4] } 31... f5 { [%clk 0:08:24.2] } 32. Rd6+ { [%clk 0:08:26.9] } 32... Rf6 { [%clk 0:08:27.3] } 33. gxf5+ { [%clk 0:08:34.5] } 33... Kxf5 { [%clk 0:08:19.1] } 34. Rxf6+ { [%clk 0:08:23.8] } 34... Kxf6 { [%clk 0:08:23.5] } 35. Kf2 { [%clk 0:08:22.5] } 35... Kf5 { [%clk 0:08:00.2] } 36. Rh7 { [%clk 0:08:05.5] } 36... Kg6 { [%clk 0:08:04.5] } 37. Rd7 { [%clk 0:08:04.2] } 37... Kf5 { [%clk 0:06:56.5] } 38. Rh7 { [%clk 0:07:51.9] } 38... Kg6 { [%clk 0:07:01.9] } 39. Rd7 { [%clk 0:07:48] } 39... Kf5 { [%clk 0:07:09] } 40. Rd4 { [%clk 0:07:52.8] } 40... h5 { [%clk 0:06:29.3] } 41. c4 { [%clk 0:07:53.1] } 41... a4 { [%clk 0:05:42.3] } 42. h3 { [%clk 0:07:33.2] } 42... Ke5 { [%clk 0:05:18.4] } 43. Ke3 { [%clk 0:07:38.6] } 43... Kf5 { [%clk 0:05:25.8] } 44. Kf3 { [%clk 0:06:49.2] } 44... Ke5 { [%clk 0:05:19.8] } 45. Re4+ { [%clk 0:06:52] } 45... Kf5 { [%clk 0:05:27.7] } 46. Rd4 { [%clk 0:06:53.8] } 46... Ke5 { [%clk 0:05:33.1] } 47. Ke3 { [%clk 0:07:02.7] } 47... Kf5 { [%clk 0:05:41.3] } 48. b4 { [%clk 0:06:22.1] } 48... axb3 { [%clk 0:05:44.2] } 49. axb3 { [%clk 0:06:31] } 49... Ra5 { [%clk 0:05:24.1] } 50. b4 { [%clk 0:06:35.6] } 50... Ra3+ { [%clk 0:05:28.2] } 51. Rd3 { [%clk 0:06:44.2] } 51... Rxd3+ { [%clk 0:05:00.1] } 52. Kxd3 { [%clk 0:06:52.6] } 52... Ke5 { [%clk 0:05:08.8] } 53. Ke3 { [%clk 0:06:53.3] } 53... g4 { [%clk 0:05:14.7] } 54. hxg4 { [%clk 0:07:01.9] } 54... hxg4 { [%clk 0:05:22.5] } 55. b5 { [%clk 0:07:10.6] } 55... cxb5 { [%clk 0:05:30.3] } 56. cxb5 { [%clk 0:07:20.4] } 56... Kd5 { [%clk 0:05:38.7] } 57. Kf4 { [%clk 0:07:29.8] } 57... Kc5 { [%clk 0:05:46.8] } 58. Kxg4 { [%clk 0:07:39.2] } 58... Kxb5 { [%clk 0:05:55.6] } 1/2-1/2

[Event "Live Chess"]
[Site "Chess.com"]
[Date "2021.02.28"]
[Round "-"]
[White "Shafi, Declan"]
[Black "Antunes, Andre"]
[Result "0-1"]
[BlackElo "2128"]
[CurrentPosition "6k1/6p1/4p1r1/p7/P2P1p2/5P1q/R3Q1rb/4BK2 w - -"]
[ECO "A46"]
[ECOUrl "https://www.chess.com/openings/Indian-Game-Knights-Variation-2...e6"]
[EndDate "2021.02.28"]
[EndTime "14:52:50"]
[Link "https://www.chess.com/live/game/8259838871"]
[StartTime "14:00:24"]
[Termination "serigado won by resignation"]
[TimeControl "1500+10"]
[Timezone "UTC"]
[UTCDate "2021.02.28"]
[UTCTime "14:00:24"]
[WhiteElo "2061"]

1. d4 { [%clk 0:25:10] } 1... Nf6 { [%clk 0:25:10] } 2. Nf3 { [%clk 0:25:10.4] } 2... e6 { [%clk 0:25:11] } 3. g3 { [%clk 0:24:55.3] } 3... b6 { [%clk 0:25:18.7] } 4. Bg2 { [%clk 0:24:46.6] } 4... Bb7 { [%clk 0:25:26.7] } 5. O-O { [%clk 0:24:54.2] } 5... Be7 { [%clk 0:25:33.8] } 6. c4 { [%clk 0:24:50.4] } 6... O-O { [%clk 0:25:41.1] } 7. Nc3 { [%clk 0:24:56.7] } 7... Ne4 { [%clk 0:25:48.1] } 8. Qc2 { [%clk 0:24:24.5] } 8... Nxc3 { [%clk 0:25:53.9] } 9. bxc3 { [%clk 0:24:29.8] } 9... f5 { [%clk 0:25:52.2] } 10. a4 { [%clk 0:23:34.3] } 10... Be4 { [%clk 0:25:44.4] } 11. Qa2 { [%clk 0:23:05.6] } 11... d5 { [%clk 0:24:38.7] } 12. cxd5 { [%clk 0:21:18.8] } 12... Qxd5 { [%clk 0:24:45.5] } 13. c4 { [%clk 0:20:36.1] } 13... Qb7 { [%clk 0:24:45.8] } 14. Bb2 { [%clk 0:20:10] } 14... Na6 { [%clk 0:22:52.5] } 15. Qb3 { [%clk 0:19:41] } 15... Nb4 { [%clk 0:20:39.5] } 16. Bc3 { [%clk 0:18:36.9] } 16... a5 { [%clk 0:20:22.4] } 17. Ne1 { [%clk 0:16:18.1] } 17... Bxg2 { [%clk 0:19:57.4] } 18. Nxg2 { [%clk 0:16:28] } 18... Rad8 { [%clk 0:19:01.9] } 19. Nf4 { [%clk 0:14:31.9] } 19... Qe4 { [%clk 0:18:59.9] } 20. c5 { [%clk 0:11:02] } 20... Nd5 { [%clk 0:18:30.1] } 21. Nxd5 { [%clk 0:11:00.3] } 21... Rxd5 { [%clk 0:17:24.1] } 22. cxb6 { [%clk 0:11:03.7] } 22... cxb6 { [%clk 0:17:18.6] } 23. Qxb6 { [%clk 0:08:53] } 23... f4 { [%clk 0:16:22.8] } 24. Qb1 { [%clk 0:07:05.5] } 24... Qxe2 { [%clk 0:15:23.1] } 25. Qe1 { [%clk 0:06:30.7] } 25... Qg4 { [%clk 0:13:06.2] } 26. f3 { [%clk 0:06:07.5] } 26... Qh3 { [%clk 0:12:43] } 27. g4 { [%clk 0:05:45.1] } 27... Rf6 { [%clk 0:12:20.4] } 28. Qe2 { [%clk 0:04:35.1] } 28... h5 { [%clk 0:11:33.3] } 29. gxh5 { [%clk 0:03:57.5] } 29... Rxh5 { [%clk 0:10:43.4] } 30. Kh1 { [%clk 0:04:00.9] } 30... Rfh6 { [%clk 0:10:25.9] } 31. Rf2 { [%clk 0:03:27.3] } 31... Bh4 { [%clk 0:10:24.8] } 32. Rg2 { [%clk 0:02:47.9] } 32... Bg3 { [%clk 0:10:30.1] } 33. Kg1 { [%clk 0:02:08.7] } 33... Bxh2+ { [%clk 0:10:24.2] } 34. Kf1 { [%clk 0:02:16.8] } 34... Rg6 { [%clk 0:09:00.8] } 35. Ra2 { [%clk 0:01:31.7] } 35... Rhg5 { [%clk 0:08:55.1] } 36. Be1 { [%clk 0:01:14.7] } 36... Rxg2 { [%clk 0:08:51.7] } 0-1

[Event "Live Chess"]
[Site "Chess.com"]
[Date "2021.02.28"]
[Round "-"]
[White "Ridge, Michael"]
[Black "Hogg, Stephen W"]
[Result "1/2-1/2"]
[BlackElo "2090"]
[CurrentPosition "5k2/R3N3/3K2p1/3P2Pp/4b2P/8/3r4/8 w - -"]
[ECO "C00"]
[ECOUrl "https://www.chess.com/openings/French-Defense-Steiner-Variation"]
[EndDate "2021.02.28"]
[EndTime "15:34:39"]
[Link "https://www.chess.com/live/game/8261595521"]
[StartTime "14:27:30"]
[Termination "Game drawn by repetition"]
[TimeControl "1500+10"]
[Timezone "UTC"]
[UTCDate "2021.02.28"]
[UTCTime "14:27:30"]
[WhiteElo "1630"]

1. c4 { [%clk 0:25:10] } 1... e6 { [%clk 0:25:10] } 2. e4 { [%clk 0:25:10.7] } 2... d5 { [%clk 0:25:08.9] } 3. exd5 { [%clk 0:25:18.4] } 3... exd5 { [%clk 0:25:16.7] } 4. cxd5 { [%clk 0:25:27.1] } 4... Qxd5 { [%clk 0:24:47] } 5. Nc3 { [%clk 0:25:33.2] } 5... Qd8 { [%clk 0:24:42.2] } 6. Bc4 { [%clk 0:25:29.6] } 6... Nf6 { [%clk 0:24:44.7] } 7. d4 { [%clk 0:24:39.1] } 7... Be7 { [%clk 0:24:50.3] } 8. Nf3 { [%clk 0:24:45.7] } 8... O-O { [%clk 0:24:58.1] } 9. O-O { [%clk 0:24:54.2] } 9... Nbd7 { [%clk 0:24:29.7] } 10. Bb3 { [%clk 0:24:52.3] } 10... c6 { [%clk 0:23:59.5] } 11. Re1 { [%clk 0:24:26.6] } 11... Nb6 { [%clk 0:23:34.7] } 12. h3 { [%clk 0:23:25.7] } 12... Nbd5 { [%clk 0:23:21.3] } 13. Bc2 { [%clk 0:21:37.7] } 13... Qd6 { [%clk 0:20:01.9] } 14. Bg5 { [%clk 0:20:40.7] } 14... Be6 { [%clk 0:19:28.3] } 15. a3 { [%clk 0:19:59.4] } 15... Rad8 { [%clk 0:18:01.2] } 16. Qd3 { [%clk 0:20:01.3] } 16... Nf4 { [%clk 0:16:18] } 17. Qe3 { [%clk 0:17:46.3] } 17... N6d5 { [%clk 0:14:52.8] } 18. Nxd5 { [%clk 0:17:30.5] } 18... Nxd5 { [%clk 0:14:15.2] } 19. Qe4 { [%clk 0:16:26.3] } 19... g6 { [%clk 0:14:00.9] } 20. Bxe7 { [%clk 0:14:54.1] } 20... Nxe7 { [%clk 0:13:40.6] } 21. Qh4 { [%clk 0:13:40.1] } 21... Nf5 { [%clk 0:12:14.3] } 22. Bxf5 { [%clk 0:12:03.7] } 22... Bxf5 { [%clk 0:12:22.2] } 23. g4 { [%clk 0:12:09.9] } 23... Qf4 { [%clk 0:09:53.1] } 24. Qg3 { [%clk 0:06:39.3] } 24... Qxg3+ { [%clk 0:09:38.4] } 25. fxg3 { [%clk 0:06:48.3] } 25... Be6 { [%clk 0:09:20.4] } 26. Rad1 { [%clk 0:06:51.8] } 26... Bd5 { [%clk 0:08:51.5] } 27. Kf2 { [%clk 0:06:00.3] } 27... Rfe8 { [%clk 0:08:47.5] } 28. Rxe8+ { [%clk 0:05:42.7] } 28... Rxe8 { [%clk 0:08:54.6] } 29. g5 { [%clk 0:05:38.1] } 29... Kg7 { [%clk 0:07:52.2] } 30. Ne5 { [%clk 0:05:27.8] } 30... f6 { [%clk 0:07:01] } 31. gxf6+ { [%clk 0:05:35.2] } 31... Kxf6 { [%clk 0:07:09.2] } 32. g4 { [%clk 0:05:09.9] } 32... Kg5 { [%clk 0:05:31.3] } 33. Kg3 { [%clk 0:05:14.5] } 33... Kf6 { [%clk 0:05:07.9] } 34. h4 { [%clk 0:04:39.3] } 34... h6 { [%clk 0:04:21.5] } 35. b4 { [%clk 0:03:35.4] } 35... h5 { [%clk 0:02:37.2] } 36. Rf1+ { [%clk 0:03:11.4] } 36... Kg7 { [%clk 0:02:41.2] } 37. g5 { [%clk 0:03:07] } 37... Re7 { [%clk 0:02:27.2] } 38. Rf6 { [%clk 0:03:07] } 38... Be4 { [%clk 0:02:29.2] } 39. Kf4 { [%clk 0:02:37.4] } 39... Bb1 { [%clk 0:02:25.4] } 40. Rd6 { [%clk 0:02:43.5] } 40... Bf5 { [%clk 0:02:07.1] } 41. Rf6 { [%clk 0:02:29.1] } 41... Bb1 { [%clk 0:01:59.5] } 42. a4 { [%clk 0:02:29.6] } 42... Bf5 { [%clk 0:01:44.5] } 43. a5 { [%clk 0:02:37.6] } 43... Rc7 { [%clk 0:01:39.6] } 44. Rd6 { [%clk 0:02:30.7] } 44... Bb1 { [%clk 0:01:36.2] } 45. a6 { [%clk 0:01:56.8] } 45... bxa6 { [%clk 0:01:38.1] } 46. Rxc6 { [%clk 0:02:01.6] } 46... Rb7 { [%clk 0:01:19.6] } 47. Rxa6 { [%clk 0:01:56.1] } 47... Rxb4 { [%clk 0:01:12] } 48. Rxa7+ { [%clk 0:02:04.4] } 48... Kg8 { [%clk 0:01:07.9] } 49. Nc6 { [%clk 0:01:30.8] } 49... Rb2 { [%clk 0:00:51.6] } 50. Ke5 { [%clk 0:01:31.7] } 50... Re2+ { [%clk 0:00:56.1] } 51. Kd6 { [%clk 0:01:36.1] } 51... Be4 { [%clk 0:00:45] } 52. Ne7+ { [%clk 0:01:13.4] } 52... Kf8 { [%clk 0:00:38.2] } 53. d5 { [%clk 0:00:56.4] } 53... Rd2 { [%clk 0:00:41] } 54. Ra8+ { [%clk 0:01:01.2] } 54... Kf7 { [%clk 0:00:44.6] } 55. Ra7 { [%clk 0:01:05.4] } 55... Kf8 { [%clk 0:00:49.8] } 56. Ra8+ { [%clk 0:01:08.7] } 56... Kf7 { [%clk 0:00:58.6] } 57. Ra7 { [%clk 0:01:14.3] } 57... Kf8 { [%clk 0:01:05.2] } 1/2-1/2